[Event "Titled Tuesday Blitz January 31 Late 2023"]
[White "Dudzinski, Pawel"]
[Black "Mekhitarian, Krikor Sevag"]
[WhiteFideId "1117890"]
[BlackFideId "2107660"]
[WhiteElo "2186"]
[BlackElo "2537"]
[Result "0-1"]
[Round "01"]
[TimeControl "180+2"]
[Date "2023.01.31"]
[WhiteClock "0:00:20"]
[BlackClock "0:01:13"]

1. e4 {[%clk 0:02:57]}  c5 {[%clk 0:02:58]} 2. c4 {[%clk 0:02:56]}  Nc6 {[%clk 0:02:57]} 3. Nc3 {[%clk 0:02:56]}  g6 {[%clk 0:02:51]} 4. g3 {[%clk 0:02:57]}  Bg7 {[%clk 0:02:52]} 5. Bg2 {[%clk 0:02:57]}  d6 {[%clk 0:02:50]} 6. Rb1 {[%clk 0:02:58]}  h5 {[%clk 0:02:48]} 7. h3 {[%clk 0:02:57]}  h4 {[%clk 0:02:43]} 8. g4 {[%clk 0:02:56]}  g5 {[%clk 0:02:44]} 9. d3 {[%clk 0:02:54]}  e6 {[%clk 0:02:44]} 10. Nge2 {[%clk 0:02:54]}  Bf6 {[%clk 0:02:31]} 11. Be3 {[%clk 0:02:49]}  Nge7 {[%clk 0:02:30]} 12. d4 {[%clk 0:02:47]}  cxd4 {[%clk 0:02:29]} 13. Nxd4 {[%clk 0:02:48]}  a6 {[%clk 0:02:22]} 14. Qd2 {[%clk 0:02:44]}  Nxd4 {[%clk 0:02:20]} 15. Bxd4 {[%clk 0:02:44]}  Ng6 {[%clk 0:02:15]} 16. O-O {[%clk 0:01:43]}  Nf4 {[%clk 0:01:55]} 17. Bxf6 {[%clk 0:01:29]}  Qxf6 {[%clk 0:01:54]} 18. Ne2 {[%clk 0:01:30]}  Nxe2+ {[%clk 0:01:39]} 19. Qxe2 {[%clk 0:01:30]}  e5 {[%clk 0:01:32]} 20. Rfd1 {[%clk 0:01:27]}  Ke7 {[%clk 0:01:31]} 21. Qf3 {[%clk 0:01:08]}  Qxf3 {[%clk 0:01:27]} 22. Bxf3 {[%clk 0:01:07]}  Be6 {[%clk 0:01:28]} 23. b3 {[%clk 0:01:05]}  Rhc8 {[%clk 0:01:28]} 24. Rdc1 {[%clk 0:00:33]}  a5 {[%clk 0:01:26]} 25. a4 {[%clk 0:00:29]}  Ra6 {[%clk 0:01:24]} 26. Rc3 {[%clk 0:00:20]}  Rb6 {[%clk 0:01:24]} 27. Rbc1 {[%clk 0:00:21]}  Rb4 {[%clk 0:01:24]} 28. Bd1 {[%clk 0:00:20]}  Rc6 {[%clk 0:01:23]} 29. f3 {[%clk 0:00:20]}  Kd7 {[%clk 0:01:23]} 30. Kf2 {[%clk 0:00:20]}  Kc7 {[%clk 0:01:24]} 31. Ke3 {[%clk 0:00:21]}  Kb6 {[%clk 0:01:24]} 32. Bc2 {[%clk 0:00:20]}  Kc5 {[%clk 0:01:25]} 33. Rd3 {[%clk 0:00:20]}  Rcb6 {[%clk 0:01:24]} 34. Rcd1 {[%clk 0:00:21]}  Rc6 {[%clk 0:01:20]} 35. Rd5+ {[%clk 0:00:20]}  Bxd5 {[%clk 0:01:20]} 36. Rxd5+ {[%clk 0:00:21]}  Kb6 {[%clk 0:01:20]} 37. Rb5+ {[%clk 0:00:21]}  Rxb5 {[%clk 0:01:19]} 38. axb5 {[%clk 0:00:22]}  Rc8 {[%clk 0:01:19]} 39. Bd3 {[%clk 0:00:21]}  Kc5 {[%clk 0:01:19]} 40. Be2 {[%clk 0:00:19]}  Kb4 {[%clk 0:01:18]} 41. Bd1 {[%clk 0:00:18]}  a4 {[%clk 0:01:16]} 42. bxa4 {[%clk 0:00:19]}  Rxc4 {[%clk 0:01:16]} 43. Kd3 {[%clk 0:00:18]}  Rc3+ {[%clk 0:01:16]} 44. Ke2 {[%clk 0:00:18]}  Ra3 {[%clk 0:01:17]} 45. Kd2 {[%clk 0:00:19]}  b6 {[%clk 0:01:17]} 46. Bc2 {[%clk 0:00:19]}  f6 {[%clk 0:01:17]} 47. Bd1 {[%clk 0:00:19]}  Rxa4 {[%clk 0:01:15]} 48. Bxa4 {[%clk 0:00:19]}  Kxa4 {[%clk 0:01:16]} 49. f4 {[%clk 0:00:18]}  exf4 {[%clk 0:01:15]} 50. Kd3 {[%clk 0:00:17]}  Kxb5 {[%clk 0:01:15]} 51. e5 {[%clk 0:00:17]}  dxe5 {[%clk 0:01:16]} 52. Ke4 {[%clk 0:00:18]}  Kc4 {[%clk 0:01:15]} 53. Kf5 {[%clk 0:00:19]}  f3 {[%clk 0:01:15]} 54. Kxf6 {[%clk 0:00:19]}  f2 {[%clk 0:01:16]} 55. Kg7 {[%clk 0:00:19]}  f1=Q {[%clk 0:01:16]} 56. Kh8 {[%clk 0:00:20]}  Kd5 {[%clk 0:01:13]} 0-1


[Site "https://www.chess.com"]

[Event "Titled Tuesday Blitz January 31 Late 2023"]
[White "Sanchez, Robert"]
[Black "Stoyanov, Tsvetan"]
[WhiteFideId "2034360"]
[BlackFideId "2917173"]
[WhiteElo "1966"]
[BlackElo "2454"]
[Result "1-0"]
[Round "01"]
[TimeControl "180+2"]
[Date "2023.01.31"]
[WhiteClock "0:00:22"]
[BlackClock "0:00:03"]

1. e4 {[%clk 0:03:00]}  c5 {[%clk 0:02:58]} 2. Nf3 {[%clk 0:03:01]}  d6 {[%clk 0:02:58]} 3. d4 {[%clk 0:03:01]}  cxd4 {[%clk 0:02:59]} 4. Nxd4 {[%clk 0:03:02]}  Nf6 {[%clk 0:03:00]} 5. Nc3 {[%clk 0:03:02]}  a6 {[%clk 0:03:00]} 6. Be3 {[%clk 0:03:02]}  e5 {[%clk 0:03:00]} 7. Nb3 {[%clk 0:03:02]}  Be6 {[%clk 0:03:01]} 8. f3 {[%clk 0:03:03]}  h5 {[%clk 0:03:01]} 9. Qd2 {[%clk 0:03:03]}  Nbd7 {[%clk 0:03:01]} 10. O-O-O {[%clk 0:03:04]}  b5 {[%clk 0:03:02]} 11. Kb1 {[%clk 0:03:04]}  Rc8 {[%clk 0:03:02]} 12. Nd5 {[%clk 0:03:04]}  Nxd5 {[%clk 0:02:58]} 13. exd5 {[%clk 0:03:04]}  Bf5 {[%clk 0:02:59]} 14. Bd3 {[%clk 0:03:04]}  Bxd3 {[%clk 0:03:00]} 15. cxd3 {[%clk 0:03:04]}  Be7 {[%clk 0:02:35]} 16. Na5 {[%clk 0:03:01]}  O-O {[%clk 0:02:35]} 17. Nc6 {[%clk 0:03:01]}  Qe8 {[%clk 0:02:35]} 18. g4 {[%clk 0:02:38]}  hxg4 {[%clk 0:02:33]} 19. Rdg1 {[%clk 0:02:33]}  Nf6 {[%clk 0:02:33]} 20. Nxe7+ {[%clk 0:02:27]}  Qxe7 {[%clk 0:02:32]} 21. Bg5 {[%clk 0:02:27]}  e4 {[%clk 0:02:13]} 22. fxe4 {[%clk 0:02:08]}  Nxe4 {[%clk 0:02:05]} 23. dxe4 {[%clk 0:02:05]}  Qxe4+ {[%clk 0:02:06]} 24. Ka1 {[%clk 0:02:03]}  Rc2 {[%clk 0:02:06]} 25. Qe3 {[%clk 0:01:47]}  Qxd5 {[%clk 0:01:27]} 26. h3 {[%clk 0:01:19]}  f6 {[%clk 0:01:11]} 27. Bh6 {[%clk 0:00:50]}  Rfc8 {[%clk 0:00:42]} 28. Bxg7 {[%clk 0:00:37]}  Kf7 {[%clk 0:00:32]} 29. Bxf6 {[%clk 0:00:33]}  Re8 {[%clk 0:00:04]} 30. Qh6 {[%clk 0:00:28]}  Ree2 {[%clk 0:00:03]} 31. Qg7+ {[%clk 0:00:23]}  Ke6 {[%clk 0:00:03]} 32. Qg8+ {[%clk 0:00:22]} 1-0


[Site "https://www.chess.com"]

[Event "Titled Tuesday Blitz January 31 Late 2023"]
[White "Corrales Jimenez, Fidel"]
[Black "Villarreal, Agustin"]
[WhiteFideId "3506690"]
[BlackFideId "125687"]
[WhiteElo "2489"]
[BlackElo "2299"]
[Result "1-0"]
[Round "01"]
[TimeControl "180+2"]
[Date "2023.01.31"]
[WhiteClock "0:01:17"]
[BlackClock "0:01:41"]

1. e4 {[%clk 0:02:55]}  e5 {[%clk 0:02:59]} 2. Nf3 {[%clk 0:02:55]}  Nc6 {[%clk 0:02:59]} 3. Bb5 {[%clk 0:02:53]}  Nf6 {[%clk 0:02:58]} 4. O-O {[%clk 0:02:51]}  a6 {[%clk 0:02:57]} 5. Ba4 {[%clk 0:02:48]}  b5 {[%clk 0:02:57]} 6. Bb3 {[%clk 0:02:47]}  Bc5 {[%clk 0:02:58]} 7. d3 {[%clk 0:02:45]}  d6 {[%clk 0:02:56]} 8. a3 {[%clk 0:02:44]}  h6 {[%clk 0:02:55]} 9. Be3 {[%clk 0:02:43]}  Bxe3 {[%clk 0:02:50]} 10. fxe3 {[%clk 0:02:44]}  O-O {[%clk 0:02:50]} 11. Nbd2 {[%clk 0:02:43]}  Be6 {[%clk 0:02:50]} 12. Qe1 {[%clk 0:02:35]}  Bxb3 {[%clk 0:02:47]} 13. Nxb3 {[%clk 0:02:34]}  Ne7 {[%clk 0:02:47]} 14. Nh4 {[%clk 0:02:33]}  Ng6 {[%clk 0:02:46]} 15. Nf5 {[%clk 0:02:32]}  d5 {[%clk 0:02:44]} 16. exd5 {[%clk 0:02:29]}  Nxd5 {[%clk 0:02:44]} 17. Qg3 {[%clk 0:02:27]}  Qg5 {[%clk 0:02:30]} 18. Qf3 {[%clk 0:02:27]}  c6 {[%clk 0:02:24]} 19. Nc5 {[%clk 0:02:26]}  Nh4 {[%clk 0:02:21]} 20. Nxh4 {[%clk 0:02:16]}  Qxh4 {[%clk 0:02:22]} 21. Nd7 {[%clk 0:02:07]}  Rfe8 {[%clk 0:02:19]} 22. Qxf7+ {[%clk 0:01:54]}  Kh8 {[%clk 0:02:18]} 23. Qg6 {[%clk 0:01:37]}  Re7 {[%clk 0:02:09]} 24. Nf8 {[%clk 0:01:24]}  Nf6 {[%clk 0:02:04]} 25. Qxf6 {[%clk 0:01:21]}  Qxf6 {[%clk 0:01:46]} 26. Rxf6 {[%clk 0:01:20]}  Kg8 {[%clk 0:01:41]} 27. Ng6 {[%clk 0:01:17]} 1-0


[Site "https://www.chess.com"]

[Event "Titled Tuesday Blitz January 31 Late 2023"]
[White "Vaglio Mattey, Emanuel"]
[Black "Preotu, Razvan"]
[WhiteFideId "6504167"]
[BlackFideId "2613280"]
[WhiteElo "2155"]
[BlackElo "2475"]
[Result "0-1"]
[Round "01"]
[TimeControl "180+2"]
[Date "2023.01.31"]
[WhiteClock "0:00:38"]
[BlackClock "0:00:19"]

1. d4 {[%clk 0:02:56]}  Nf6 {[%clk 0:02:47]} 2. Nf3 {[%clk 0:02:56]}  g6 {[%clk 0:02:45]} 3. Bg5 {[%clk 0:02:57]}  Bg7 {[%clk 0:02:45]} 4. Nbd2 {[%clk 0:02:57]}  d5 {[%clk 0:02:45]} 5. e3 {[%clk 0:02:58]}  O-O {[%clk 0:02:39]} 6. c3 {[%clk 0:02:58]}  Nbd7 {[%clk 0:02:35]} 7. Be2 {[%clk 0:02:59]}  Re8 {[%clk 0:02:30]} 8. O-O {[%clk 0:02:59]}  e5 {[%clk 0:02:31]} 9. dxe5 {[%clk 0:02:59]}  Nxe5 {[%clk 0:02:32]} 10. Nxe5 {[%clk 0:02:59]}  Rxe5 {[%clk 0:02:32]} 11. Nf3 {[%clk 0:03:00]}  Re8 {[%clk 0:02:31]} 12. c4 {[%clk 0:02:59]}  h6 {[%clk 0:02:16]} 13. Bxf6 {[%clk 0:02:51]}  Bxf6 {[%clk 0:02:11]} 14. cxd5 {[%clk 0:02:50]}  Bxb2 {[%clk 0:02:11]} 15. Rb1 {[%clk 0:02:49]}  Bg7 {[%clk 0:02:12]} 16. Qb3 {[%clk 0:02:49]}  Bf5 {[%clk 0:02:08]} 17. Rbc1 {[%clk 0:02:49]}  Rb8 {[%clk 0:01:17]} 18. Rfd1 {[%clk 0:02:37]}  Qd6 {[%clk 0:01:17]} 19. Nd4 {[%clk 0:02:33]}  Bd7 {[%clk 0:01:05]} 20. Bb5 {[%clk 0:02:20]}  Red8 {[%clk 0:00:45]} 21. Bxd7 {[%clk 0:02:21]}  Rxd7 {[%clk 0:00:45]} 22. Nb5 {[%clk 0:02:21]}  Qb6 {[%clk 0:00:45]} 23. e4 {[%clk 0:02:16]}  a6 {[%clk 0:00:44]} 24. Nc3 {[%clk 0:02:11]}  Qxb3 {[%clk 0:00:44]} 25. axb3 {[%clk 0:02:12]}  c6 {[%clk 0:00:39]} 26. Na4 {[%clk 0:01:52]}  cxd5 {[%clk 0:00:36]} 27. Nb6 {[%clk 0:01:51]}  Rd6 {[%clk 0:00:32]} 28. Nxd5 {[%clk 0:01:51]}  Re6 {[%clk 0:00:31]} 29. f3 {[%clk 0:01:48]}  Bf8 {[%clk 0:00:26]} 30. Rc4 {[%clk 0:01:36]}  b5 {[%clk 0:00:24]} 31. Rc7 {[%clk 0:01:35]}  a5 {[%clk 0:00:24]} 32. Ra1 {[%clk 0:01:31]}  Ra6 {[%clk 0:00:23]} 33. Ra2 {[%clk 0:00:42]}  a4 {[%clk 0:00:23]} 34. bxa4 {[%clk 0:00:43]}  bxa4 {[%clk 0:00:24]} 35. Kf1 {[%clk 0:00:42]}  a3 {[%clk 0:00:24]} 36. Rcc2 {[%clk 0:00:42]}  Rb1+ {[%clk 0:00:24]} 37. Ke2 {[%clk 0:00:42]}  Rg1 {[%clk 0:00:23]} 38. Kf2 {[%clk 0:00:42]}  Rh1 {[%clk 0:00:22]} 39. h3 {[%clk 0:00:42]}  Kg7 {[%clk 0:00:22]} 40. e5 {[%clk 0:00:42]}  Ra5 {[%clk 0:00:21]} 41. Rd2 {[%clk 0:00:40]}  Bc5+ {[%clk 0:00:19]} 42. Ke2 {[%clk 0:00:38]}  Rg1 {[%clk 0:00:19]} 43. Kd3 {[%clk 0:00:37]}  Bf8 {[%clk 0:00:17]} 44. f4 {[%clk 0:00:38]}  Rxd5+ {[%clk 0:00:16]} 45. Ke4 {[%clk 0:00:38]}  Rxd2 {[%clk 0:00:16]} 46. Rxd2 {[%clk 0:00:39]}  Rb1 {[%clk 0:00:16]} 47. Ra2 {[%clk 0:00:39]}  Rb2 {[%clk 0:00:17]} 48. Ra1 {[%clk 0:00:39]}  Rxg2 {[%clk 0:00:16]} 49. Kf3 {[%clk 0:00:40]}  Rb2 {[%clk 0:00:16]} 50. Ke3 {[%clk 0:00:39]}  a2 {[%clk 0:00:16]} 51. Kd3 {[%clk 0:00:40]}  Rh2 {[%clk 0:00:16]} 52. Kc3 {[%clk 0:00:34]}  Rxh3+ {[%clk 0:00:16]} 53. Kc2 {[%clk 0:00:33]}  Ra3 {[%clk 0:00:17]} 54. Kb2 {[%clk 0:00:34]}  h5 {[%clk 0:00:17]} 55. Kc2 {[%clk 0:00:32]}  h4 {[%clk 0:00:17]} 56. Kd2 {[%clk 0:00:33]}  h3 {[%clk 0:00:18]} 57. Ke2 {[%clk 0:00:34]}  h2 {[%clk 0:00:17]} 58. Kf2 {[%clk 0:00:35]}  h1=Q {[%clk 0:00:18]} 59. Rxh1 {[%clk 0:00:36]}  a1=Q {[%clk 0:00:18]} 60. Rxa1 {[%clk 0:00:36]}  Rxa1 {[%clk 0:00:19]} 61. Kf3 {[%clk 0:00:37]}  Ra3+ {[%clk 0:00:19]} 62. Kf2 {[%clk 0:00:38]}  Kh6 {[%clk 0:00:18]} 63. Kg2 {[%clk 0:00:38]}  Kh5 {[%clk 0:00:19]} 64. f5 {[%clk 0:00:38]}  gxf5 {[%clk 0:00:19]} 0-1


[Site "https://www.chess.com"]

[Event "Titled Tuesday Blitz January 31 Late 2023"]
[White "Grot, Blazej"]
[Black "Jaracz, Pawel"]
[WhiteFideId "21835845"]
[BlackFideId "1102222"]
[WhiteElo "1990"]
[BlackElo "2467"]
[Result "0-1"]
[Round "01"]
[TimeControl "180+2"]
[Date "2023.01.31"]
[WhiteClock "0:00:04"]
[BlackClock "0:00:17"]

1. e4 {[%clk 0:02:55]}  e6 {[%clk 0:02:58]} 2. d3 {[%clk 0:02:54]}  d5 {[%clk 0:02:58]} 3. Nd2 {[%clk 0:02:54]}  Nc6 {[%clk 0:02:58]} 4. Ngf3 {[%clk 0:02:54]}  Bc5 {[%clk 0:02:55]} 5. Be2 {[%clk 0:02:54]}  Nge7 {[%clk 0:02:55]} 6. O-O {[%clk 0:02:53]}  O-O {[%clk 0:02:53]} 7. c3 {[%clk 0:02:53]}  e5 {[%clk 0:02:52]} 8. Qc2 {[%clk 0:02:52]}  a5 {[%clk 0:02:51]} 9. a3 {[%clk 0:02:50]}  a4 {[%clk 0:02:48]} 10. Re1 {[%clk 0:02:45]}  Be6 {[%clk 0:02:40]} 11. Bf1 {[%clk 0:02:45]}  d4 {[%clk 0:02:39]} 12. cxd4 {[%clk 0:02:44]}  Bxd4 {[%clk 0:02:37]} 13. Nc4 {[%clk 0:02:35]}  Bg4 {[%clk 0:02:29]} 14. Be2 {[%clk 0:02:27]}  Bxf3 {[%clk 0:02:28]} 15. Bxf3 {[%clk 0:02:27]}  Ba7 {[%clk 0:02:23]} 16. Be3 {[%clk 0:02:26]}  Nd4 {[%clk 0:02:22]} 17. Bxd4 {[%clk 0:02:25]}  Bxd4 {[%clk 0:02:21]} 18. Rac1 {[%clk 0:02:23]}  c6 {[%clk 0:02:13]} 19. b3 {[%clk 0:02:22]}  axb3 {[%clk 0:02:13]} 20. Qxb3 {[%clk 0:02:23]}  b5 {[%clk 0:02:06]} 21. Ne3 {[%clk 0:02:22]}  g6 {[%clk 0:02:00]} 22. Rc2 {[%clk 0:02:13]}  Qd6 {[%clk 0:01:59]} 23. Ra2 {[%clk 0:02:12]}  Ra4 {[%clk 0:01:57]} 24. Nc2 {[%clk 0:02:11]}  Rfa8 {[%clk 0:01:56]} 25. h3 {[%clk 0:02:08]}  Kg7 {[%clk 0:01:39]} 26. Bd1 {[%clk 0:02:05]}  Bc5 {[%clk 0:01:37]} 27. Be2 {[%clk 0:01:55]}  Nc8 {[%clk 0:01:15]} 28. g3 {[%clk 0:01:54]}  Nb6 {[%clk 0:01:14]} 29. Kg2 {[%clk 0:01:54]}  Nd7 {[%clk 0:01:02]} 30. h4 {[%clk 0:01:38]}  h5 {[%clk 0:00:56]} 31. Qb2 {[%clk 0:01:24]}  Bd4 {[%clk 0:00:53]} 32. Qc1 {[%clk 0:01:13]}  Nc5 {[%clk 0:00:51]} 33. Qd2 {[%clk 0:01:10]}  Bxf2 {[%clk 0:00:43]} 34. Rf1 {[%clk 0:00:52]}  Bxg3 {[%clk 0:00:42]} 35. Qg5 {[%clk 0:00:37]}  Bf4 {[%clk 0:00:40]} 36. Rxf4 {[%clk 0:00:30]}  exf4 {[%clk 0:00:39]} 37. Ra1 {[%clk 0:00:24]}  Ne6 {[%clk 0:00:35]} 38. e5 {[%clk 0:00:14]}  Qd5+ {[%clk 0:00:33]} 39. Bf3 {[%clk 0:00:14]}  Nxg5 {[%clk 0:00:26]} 40. Bxd5 {[%clk 0:00:13]}  cxd5 {[%clk 0:00:26]} 41. hxg5 {[%clk 0:00:14]}  b4 {[%clk 0:00:27]} 42. Kf3 {[%clk 0:00:08]}  bxa3 {[%clk 0:00:23]} 43. d4 {[%clk 0:00:08]}  a2 {[%clk 0:00:22]} 44. Kxf4 {[%clk 0:00:08]}  Rc4 {[%clk 0:00:21]} 45. Ne3 {[%clk 0:00:07]}  Rxd4+ {[%clk 0:00:21]} 46. Kf3 {[%clk 0:00:07]}  Ra3 {[%clk 0:00:21]} 47. Kf2 {[%clk 0:00:06]}  Rf4+ {[%clk 0:00:21]} 48. Kg3 {[%clk 0:00:04]}  Re4 {[%clk 0:00:22]} 49. Kf2 {[%clk 0:00:03]}  Rexe3 {[%clk 0:00:21]} 50. e6 {[%clk 0:00:03]}  fxe6 {[%clk 0:00:20]} 51. Kg2 {[%clk 0:00:03]}  Reb3 {[%clk 0:00:20]} 52. Kh2 {[%clk 0:00:04]}  Rb2+ {[%clk 0:00:20]} 53. Kh1 {[%clk 0:00:04]}  h4 {[%clk 0:00:19]} 54. Rf1 {[%clk 0:00:03]}  a1=Q {[%clk 0:00:18]} 55. Kg1 {[%clk 0:00:04]}  Qxf1+ {[%clk 0:00:17]} 56. Kxf1 {[%clk 0:00:04]}  Ra1# {[%clk 0:00:17]} 0-1


[Site "https://www.chess.com"]

[Event "Titled Tuesday Blitz January 31 Late 2023"]
[White "Khoroshev, Nikita"]
[Black "marik_spb"]
[WhiteFideId "14200287"]
[WhiteElo "2336"]
[BlackElo "2323"]
[Result "1-0"]
[Round "01"]
[TimeControl "180+2"]
[Date "2023.01.31"]
[WhiteClock "0:00:49"]
[BlackClock "0:00:07"]

1. e4 {[%clk 0:02:59]}  c6 {[%clk 0:02:57]} 2. Nf3 {[%clk 0:02:59]}  d5 {[%clk 0:02:57]} 3. Nc3 {[%clk 0:03:00]}  dxe4 {[%clk 0:02:58]} 4. Nxe4 {[%clk 0:03:01]}  Nf6 {[%clk 0:02:58]} 5. Nxf6+ {[%clk 0:03:01]}  exf6 {[%clk 0:02:57]} 6. Bc4 {[%clk 0:03:02]}  Bd6 {[%clk 0:02:55]} 7. Qe2+ {[%clk 0:03:02]}  Qe7 {[%clk 0:02:55]} 8. Qxe7+ {[%clk 0:03:03]}  Kxe7 {[%clk 0:02:56]} 9. O-O {[%clk 0:03:03]}  Be6 {[%clk 0:02:56]} 10. Re1 {[%clk 0:03:04]}  Re8 {[%clk 0:02:57]} 11. Nd4 {[%clk 0:03:00]}  Kd7 {[%clk 0:02:50]} 12. Nxe6 {[%clk 0:02:59]}  fxe6 {[%clk 0:02:50]} 13. d4 {[%clk 0:02:59]}  b5 {[%clk 0:02:48]} 14. Bd3 {[%clk 0:02:57]}  g6 {[%clk 0:02:45]} 15. a3 {[%clk 0:02:52]}  Na6 {[%clk 0:02:44]} 16. b3 {[%clk 0:02:52]}  Nc7 {[%clk 0:02:41]} 17. c4 {[%clk 0:02:52]}  a6 {[%clk 0:02:37]} 18. Bd2 {[%clk 0:02:49]}  e5 {[%clk 0:02:10]} 19. dxe5 {[%clk 0:02:49]}  Bxe5 {[%clk 0:02:04]} 20. Rad1 {[%clk 0:02:48]}  Rad8 {[%clk 0:02:02]} 21. Ba5 {[%clk 0:02:45]}  Kc8 {[%clk 0:01:58]} 22. g3 {[%clk 0:02:37]}  Kb7 {[%clk 0:01:58]} 23. a4 {[%clk 0:02:36]}  Bd4 {[%clk 0:01:42]} 24. cxb5 {[%clk 0:02:29]}  Rxe1+ {[%clk 0:01:39]} 25. Rxe1 {[%clk 0:02:21]}  cxb5 {[%clk 0:01:35]} 26. Be4+ {[%clk 0:02:15]}  Kb8 {[%clk 0:01:29]} 27. Kg2 {[%clk 0:02:10]}  Re8 {[%clk 0:01:02]} 28. Bc6 {[%clk 0:01:59]}  Rxe1 {[%clk 0:01:01]} 29. Bxe1 {[%clk 0:02:00]}  bxa4 {[%clk 0:01:01]} 30. bxa4 {[%clk 0:02:01]}  Ne6 {[%clk 0:00:58]} 31. Ba5 {[%clk 0:01:46]}  Be5 {[%clk 0:00:47]} 32. f4 {[%clk 0:01:45]}  Bc7 {[%clk 0:00:47]} 33. Bc3 {[%clk 0:01:43]}  Bd8 {[%clk 0:00:44]} 34. Kf3 {[%clk 0:01:29]}  Kc7 {[%clk 0:00:44]} 35. Be8 {[%clk 0:01:26]}  Kd6 {[%clk 0:00:41]} 36. Bb4+ {[%clk 0:01:26]}  Nc5 {[%clk 0:00:29]} 37. Ke3 {[%clk 0:01:16]}  a5 {[%clk 0:00:25]} 38. Ba3 {[%clk 0:01:15]}  Kd5 {[%clk 0:00:24]} 39. Bf7+ {[%clk 0:01:15]}  Kc6 {[%clk 0:00:22]} 40. Kd4 {[%clk 0:01:13]}  Nd7 {[%clk 0:00:10]} 41. Bd5+ {[%clk 0:01:06]}  Kc7 {[%clk 0:00:09]} 42. Bg8 {[%clk 0:01:03]}  h6 {[%clk 0:00:08]} 43. g4 {[%clk 0:01:01]}  Kc6 {[%clk 0:00:06]} 44. Bd5+ {[%clk 0:01:00]}  Kc7 {[%clk 0:00:07]} 45. Bf7 {[%clk 0:00:57]}  g5 {[%clk 0:00:06]} 46. f5 {[%clk 0:00:56]}  Kc6 {[%clk 0:00:07]} 47. Be8 {[%clk 0:00:55]}  Bb6+ {[%clk 0:00:06]} 48. Kc4 {[%clk 0:00:54]}  Bg1 {[%clk 0:00:06]} 49. h3 {[%clk 0:00:53]}  Kc7 {[%clk 0:00:06]} 50. Bxd7 {[%clk 0:00:53]}  Kxd7 {[%clk 0:00:07]} 51. Kd5 {[%clk 0:00:54]}  Bb6 {[%clk 0:00:05]} 52. Bb2 {[%clk 0:00:48]}  Bd8 {[%clk 0:00:05]} 53. Bd4 {[%clk 0:00:48]}  Kc7 {[%clk 0:00:05]} 54. Ke6 {[%clk 0:00:48]}  Kc6 {[%clk 0:00:06]} 55. Bxf6 {[%clk 0:00:48]}  Bxf6 {[%clk 0:00:07]} 56. Kxf6 {[%clk 0:00:49]} 1-0


[Site "https://www.chess.com"]

[Event "Titled Tuesday Blitz January 31 Late 2023"]
[White "Melikhov, Evgeny V."]
[Black "Cardoso Cardoso, Jose Gabriel"]
[WhiteFideId "4122046"]
[BlackFideId "4430492"]
[WhiteElo "2269"]
[BlackElo "2492"]
[Result "0-1"]
[Round "01"]
[TimeControl "180+2"]
[Date "2023.01.31"]
[WhiteClock "0:00:01"]
[BlackClock "0:00:04"]

1. d4 {[%clk 0:02:59]}  Nf6 {[%clk 0:02:57]} 2. c4 {[%clk 0:02:58]}  g6 {[%clk 0:02:56]} 3. Nc3 {[%clk 0:02:58]}  Bg7 {[%clk 0:02:55]} 4. e4 {[%clk 0:02:57]}  d6 {[%clk 0:02:51]} 5. f3 {[%clk 0:02:57]}  O-O {[%clk 0:02:51]} 6. Be3 {[%clk 0:02:57]}  c5 {[%clk 0:02:30]} 7. Nge2 {[%clk 0:02:55]}  cxd4 {[%clk 0:02:27]} 8. Nxd4 {[%clk 0:02:55]}  Nc6 {[%clk 0:02:27]} 9. Be2 {[%clk 0:02:54]}  Nxd4 {[%clk 0:02:18]} 10. Bxd4 {[%clk 0:02:54]}  Be6 {[%clk 0:02:19]} 11. O-O {[%clk 0:02:49]}  a5 {[%clk 0:02:19]} 12. Rc1 {[%clk 0:02:43]}  Nd7 {[%clk 0:02:18]} 13. Bxg7 {[%clk 0:02:40]}  Kxg7 {[%clk 0:02:16]} 14. Qd4+ {[%clk 0:02:38]}  Kg8 {[%clk 0:02:13]} 15. Nd5 {[%clk 0:02:33]}  a4 {[%clk 0:02:05]} 16. Rfd1 {[%clk 0:02:20]}  Rc8 {[%clk 0:01:24]} 17. b4 {[%clk 0:02:12]}  axb3 {[%clk 0:01:22]} 18. axb3 {[%clk 0:02:12]}  Bxd5 {[%clk 0:01:20]} 19. cxd5 {[%clk 0:02:11]}  Qb6 {[%clk 0:01:18]} 20. Qxb6 {[%clk 0:02:09]}  Nxb6 {[%clk 0:01:19]} 21. Kf2 {[%clk 0:02:08]}  Kg7 {[%clk 0:01:08]} 22. Ke3 {[%clk 0:02:07]}  f5 {[%clk 0:00:57]} 23. Bd3 {[%clk 0:01:46]}  fxe4 {[%clk 0:00:50]} 24. fxe4 {[%clk 0:01:45]}  Nd7 {[%clk 0:00:45]} 25. Be2 {[%clk 0:01:11]}  Ne5 {[%clk 0:00:43]} 26. b4 {[%clk 0:00:31]}  h5 {[%clk 0:00:36]} 27. b5 {[%clk 0:00:27]}  h4 {[%clk 0:00:27]} 28. b6 {[%clk 0:00:19]}  Ra8 {[%clk 0:00:13]} 29. Rc7 {[%clk 0:00:17]}  Ra3+ {[%clk 0:00:14]} 30. Bd3 {[%clk 0:00:15]}  Rf7 {[%clk 0:00:08]} 31. Rxb7 {[%clk 0:00:13]}  Rb3 {[%clk 0:00:08]} 32. Rb8 {[%clk 0:00:12]}  Nc4+ {[%clk 0:00:07]} 33. Kd4 {[%clk 0:00:12]}  Rxb6 {[%clk 0:00:04]} 34. Rxb6 {[%clk 0:00:12]}  Nxb6 {[%clk 0:00:05]} 35. Rf1 {[%clk 0:00:11]}  Rxf1 {[%clk 0:00:05]} 36. Bxf1 {[%clk 0:00:12]}  Kf6 {[%clk 0:00:05]} 37. g3 {[%clk 0:00:11]}  g5 {[%clk 0:00:04]} 38. gxh4 {[%clk 0:00:10]}  gxh4 {[%clk 0:00:05]} 39. Be2 {[%clk 0:00:09]}  Nd7 {[%clk 0:00:05]} 40. Bd1 {[%clk 0:00:07]}  Kg5 {[%clk 0:00:04]} 41. Be2 {[%clk 0:00:06]}  Kf4 {[%clk 0:00:04]} 42. Bd1 {[%clk 0:00:06]}  Nf6 {[%clk 0:00:04]} 43. Bc2 {[%clk 0:00:04]}  Ng4 {[%clk 0:00:04]} 44. Bd1 {[%clk 0:00:01]}  Nxh2 {[%clk 0:00:04]} 45. Be2 {[%clk 0:00:01]}  Nf3+ {[%clk 0:00:04]} 0-1


[Site "https://www.chess.com"]